bitfinex/quotes_BTCUSD_20250615
["timestamp","ask_amount","ask_price","bid_price","bid_amount"]
[1750012613372,0.76791113,105700.0,105690.0,0.15346182]
[1750012613579,0.76791113,105700.0,105690.0,0.17122507]
[1750012613749,0.76791113,105700.0,105690.0,0.17122506]
[1750012614860,0.76791113,105700.0,105690.0,0.17122507]
[1750012615062,0.76791113,105700.0,105690.0,0.15346182]
[1750012615327,0.2298753,105700.0,105690.0,0.15346182]
[1750012615540,0.76791113,105700.0,105690.0,0.15346182]
[1750012615770,0.76791113,105700.0,105690.0,0.17122507]
[1750012616606,0.76791113,105700.0,105690.0,0.17122564]
[1750012617593,0.76791113,105700.0,105690.0,0.17122507]
[1750012618193,0.76791113,105700.0,105690.0,0.17122565]
[1750012618396,0.76791113,105700.0,105690.0,0.15346182]
[1750012619590,0.76791113,105700.0,105690.0,0.17122601]
[1750012619802,0.76791113,105700.0,105690.0,0.17122636]
[1750012620010,0.76791113,105700.0,105690.0,0.15346182]
[1750012620188,0.76791113,105700.0,105690.0,0.17122602]
[1750012620622,0.76791113,105700.0,105690.0,0.1712264]
[1750012621056,0.76791113,105700.0,105690.0,0.15346182]
[1750012621477,0.76791113,105700.0,105690.0,0.17122601]
[1750012621694,0.76791113,105700.0,105690.0,0.17122636]
[1750012622374,0.76791113,105700.0,105690.0,0.15346182]
[1750012622588,0.76791113,105700.0,105690.0,0.17122601]
[1750012622802,0.76791113,105700.0,105690.0,0.15346182]
[1750012623244,0.76791113,105700.0,105690.0,0.17122636]
[1750012623676,0.76791113,105700.0,105690.0,0.17122601]
[1750012623905,0.76791113,105700.0,105690.0,0.15346182]
[1750012624334,0.76791113,105700.0,105690.0,0.17122601]
[1750012624568,0.76791113,105700.0,105690.0,0.15346182]
[1750012624763,0.76791113,105700.0,105690.0,0.17122601]
[1750012625010,0.83509363,105700.0,105690.0,0.15346182]
[1750012625235,0.83509363,105700.0,105690.0,0.1712264]
[1750012625452,0.83509363,105700.0,105690.0,0.17122601]
[1750012625674,0.83509363,105700.0,105690.0,0.15346182]
[1750012625920,0.83509363,105700.0,105690.0,0.17122644]
[1750012626146,0.83509363,105700.0,105690.0,0.17122601]
[1750012626359,0.83509363,105700.0,105690.0,0.15346182]
[1750012626570,0.83509363,105700.0,105690.0,0.17122668]
[1750012626784,0.83509363,105700.0,105690.0,0.15346182]
[1750012626995,0.83509363,105700.0,105690.0,0.17122631]
[1750012627812,0.83509363,105700.0,105690.0,0.17122779]
[1750012628012,0.83509363,105700.0,105690.0,0.17122783]
[1750012628370,0.83509363,105700.0,105690.0,0.15346182]
[1750012629400,0.83509363,105700.0,105690.0,0.1712278]
[1750012629609,0.83509363,105700.0,105690.0,0.15346182]
[1750012630062,0.80389363,105700.0,105690.0,0.15346182]
[1750012630286,0.80389363,105700.0,105690.0,0.17122779]
[1750012630516,0.80389363,105700.0,105690.0,0.17122777]
[1750012630746,0.80389363,105700.0,105690.0,0.15346182]
[1750012631019,0.80389363,105700.0,105690.0,0.17122783]
[1750012631481,0.80389363,105700.0,105690.0,0.1712277]
[1750012631699,0.80389363,105700.0,105690.0,0.15346182]
[1750012632144,0.80389363,105700.0,105690.0,0.17122739]
[1750012632844,0.80389363,105700.0,105690.0,0.15346182]
[1750012633061,0.80389363,105700.0,105690.0,0.17122737]
[1750012633286,0.80389363,105700.0,105690.0,0.15346182]
[1750012633543,0.80389363,105700.0,105690.0,0.17122749]
[1750012634035,0.80389363,105700.0,105690.0,0.15346182]
[1750012634519,0.80389363,105700.0,105690.0,0.17122735]
[1750012634756,0.80389363,105700.0,105690.0,0.15346182]
[1750012635205,0.80389363,105700.0,105690.0,0.17122723]
[1750012635422,0.80389363,105700.0,105690.0,0.15346182]
[1750012635647,0.80389363,105700.0,105690.0,0.17122723]
[1750012635833,0.80389363,105700.0,105690.0,0.15346182]
[1750012636059,0.80389363,105700.0,105690.0,0.17122723]
[1750012636284,0.60521833,105700.0,105690.0,0.17122723]
[1750012636502,0.79443308,105700.0,105690.0,0.17122723]
[1750012636945,1.44121196,105700.0,105690.0,0.00014182]
[1750012637166,1.50837942,105700.0,105690.0,0.01790723]
[1750012637386,1.50837942,105700.0,105690.0,0.00014182]
[1750012637835,1.50837942,105700.0,105690.0,0.01790737]
[1750012638058,1.50837942,105700.0,105690.0,0.01790744]
[1750012638282,1.50837942,105700.0,105690.0,0.00014182]
[1750012638504,1.50837942,105700.0,105690.0,0.01790751]
[1750012639045,1.53745372,105700.0,105690.0,0.0179074]
[1750012639293,7.10906172,105700.0,105690.0,0.01790774]
[1750012639719,7.10906172,105700.0,105690.0,0.01790879]
[1750012639935,7.10906172,105700.0,105690.0,0.01790856]
[1750012640155,7.10906172,105700.0,105690.0,0.01790857]
[1750012640568,7.20821094,105700.0,105690.0,0.00014182]
[1750012640795,7.20821094,105700.0,105690.0,0.01790856]
[1750012641233,7.20821094,105700.0,105690.0,0.01790855]
[1750012641488,7.20821094,105700.0,105690.0,0.00014182]
[1750012641704,7.20921094,105700.0,105690.0,0.01790849]
[1750012641917,7.20921094,105700.0,105690.0,0.00014182]
[1750012642131,7.20921094,105700.0,105690.0,0.01790872]
[1750012642354,7.20921094,105700.0,105690.0,0.00014182]
[1750012643228,7.20921094,105700.0,105690.0,0.01790853]
[1750012643440,7.20921094,105700.0,105690.0,0.01790852]
[1750012643656,7.20921094,105700.0,105690.0,0.01790877]
[1750012644126,7.11306172,105700.0,105690.0,0.01790853]
[1750012644342,7.11306172,105700.0,105690.0,0.01790877]
[1750012644564,7.11306172,105700.0,105690.0,0.01790875]
[1750012644782,7.11306172,105700.0,105690.0,0.00014182]
[1750012645002,6.50784339,105700.0,105690.0,0.01790875]
[1750012645261,7.11306172,105700.0,105690.0,0.00014182]
[1750012645483,7.11306172,105700.0,105690.0,0.01790851]
[1750012645921,7.11306172,105700.0,105690.0,0.00014182]
[1750012646357,7.11306172,105700.0,105690.0,0.01790875]
[1750012646585,7.11306172,105700.0,105690.0,0.00014182]
[1750012646806,7.11306172,105700.0,105690.0,0.01790872]
[1750012647032,7.11306172,105700.0,105690.0,0.00014182]
[1750012647472,7.11306172,105700.0,105690.0,0.01790848]
[1750012647669,7.11306172,105700.0,105690.0,0.00014182]
[1750012647880,7.11306172,105700.0,105690.0,0.01790882]
[1750012648069,7.11306172,105700.0,105690.0,0.00014182]
[1750012648782,7.11306172,105700.0,105690.0,0.01790848]
[1750012648986,7.11306172,105700.0,105690.0,0.00014182]
[1750012649219,7.11306172,105700.0,105690.0,0.01790881]
[1750012649437,7.11306172,105700.0,105690.0,0.00014182]
[1750012649863,7.11306172,105700.0,105690.0,0.01790879]
[1750012650304,7.11306172,105700.0,105690.0,0.00014182]
[1750012650508,7.11306172,105700.0,105690.0,0.01790879]
[1750012650712,7.11306172,105700.0,105690.0,0.00014182]
[1750012651135,7.11306172,105700.0,105690.0,0.01790903]
[1750012651314,7.11306172,105700.0,105690.0,0.00014182]
[1750012651598,7.11306172,105700.0,105690.0,0.01790904]
[1750012652042,7.11306172,105700.0,105690.0,0.00014182]
[1750012652391,7.11306172,105700.0,105690.0,0.01790902]
[1750012652646,7.11306172,105700.0,105690.0,0.01790873]
[1750012652887,7.11306172,105700.0,105690.0,0.00014182]
[1750012653067,7.11306172,105700.0,105690.0,0.01790841]
[1750012653203,7.11306172,105700.0,105690.0,0.00014182]
[1750012653406,7.11306172,105700.0,105690.0,0.01790873]
[1750012653824,7.11306172,105700.0,105690.0,0.01790841]
[1750012654030,7.20921094,105700.0,105690.0,0.01790841]
[1750012654511,7.20921094,105700.0,105690.0,0.00014182]
[1750012654901,7.20921094,105700.0,105690.0,0.01790874]
[1750012655230,7.20921094,105700.0,105690.0,0.00014182]
[1750012655458,7.20921094,105700.0,105690.0,0.01790874]
[1750012655668,7.20921094,105700.0,105690.0,0.00014182]
[1750012655883,7.20921094,105700.0,105690.0,0.01790876]
[1750012656304,7.20921094,105700.0,105690.0,0.00014182]
[1750012657372,7.11306172,105700.0,105690.0,0.01790914]
[1750012657791,7.11306172,105700.0,105690.0,0.00014182]
[1750012658022,7.11306172,105700.0,105690.0,0.01790912]
[1750012658457,7.11306172,105700.0,105690.0,0.00014182]
[1750012658685,7.15234172,105700.0,105690.0,0.01790908]
[1750012658910,7.15234172,105700.0,105690.0,0.01790907]
[1750012659176,7.15234172,105700.0,105690.0,0.01790904]
[1750012659429,7.15234172,105700.0,105690.0,0.01790882]
[1750012659672,7.15234172,105700.0,105690.0,0.01790906]
[1750012660572,7.15234172,105700.0,105690.0,0.00014182]
[1750012660820,7.15234172,105700.0,105690.0,0.01790899]
[1750012661026,7.15234172,105700.0,105690.0,0.01790883]
[1750012661243,7.15234172,105700.0,105690.0,0.01787336]
[1750012662559,7.15230172,105700.0,105690.0,0.00014182]
[1750012662772,7.24845094,105700.0,105690.0,0.01787334]
[1750012662991,7.15230172,105700.0,105690.0,0.01787334]
[1750012663435,7.15230172,105700.0,105690.0,0.00014182]
[1750012663660,7.15230172,105700.0,105690.0,0.01787334]
[1750012663887,7.15230172,105700.0,105690.0,0.0178737]
[1750012664112,7.15230172,105700.0,105690.0,0.01787375]
[1750012664351,7.24845094,105700.0,105690.0,0.00014182]
[1750012664610,7.24845094,105700.0,105690.0,0.0178737]
[1750012664819,7.24845094,105700.0,105690.0,0.01787379]
[1750012665044,7.24845094,105700.0,105690.0,0.01787382]
[1750012665239,7.24845094,105700.0,105690.0,0.00014182]
[1750012665464,7.24845094,105700.0,105690.0,0.01787383]
[1750012665687,7.24845094,105700.0,105690.0,0.00014182]
[1750012666079,7.24845094,105700.0,105690.0,0.01787377]
[1750012666302,7.24845094,105700.0,105690.0,0.00014182]
[1750012667150,7.24845094,105700.0,105690.0,0.01787396]
[1750012667358,7.24845094,105700.0,105690.0,0.00014182]
[1750012667917,7.24845094,105700.0,105690.0,0.01790952]
[1750012668147,7.24845094,105700.0,105690.0,0.00014182]
[1750012668412,7.15230172,105700.0,105690.0,0.0179096]
[1750012668624,7.15230172,105700.0,105690.0,0.00014182]
[1750012668848,7.15230172,105700.0,105690.0,0.0179095]
[1750012669076,7.15230172,105700.0,105690.0,0.01790949]
[1750012669315,7.15230172,105700.0,105690.0,0.01790959]
[1750012669546,7.15230172,105700.0,105690.0,0.00014182]
[1750012669776,7.15230172,105700.0,105690.0,0.01790965]
[1750012670214,7.15230172,105700.0,105690.0,0.00014182]
[1750012670432,7.15230172,105700.0,105690.0,0.01790956]
[1750012670718,7.15230172,105700.0,105690.0,0.00014182]
[1750012671148,7.15230172,105700.0,105690.0,0.01790994]
[1750012671355,7.15230172,105700.0,105690.0,0.00014182]
[1750012671604,7.15230172,105700.0,105690.0,0.01790994]
[1750012672329,7.15230172,105700.0,105690.0,0.00014182]
[1750012672564,7.15230172,105700.0,105690.0,0.01790994]
[1750012672795,7.15230172,105700.0,105690.0,0.00014182]
[1750012673021,7.15230172,105700.0,105690.0,0.01790994]
[1750012673297,7.15230172,105700.0,105690.0,0.00014182]
[1750012673757,7.15230172,105700.0,105690.0,0.01790983]
[1750012673983,7.12385372,105700.0,105690.0,0.00014182]
[1750012674431,7.12385372,105700.0,105690.0,0.01790976]
[1750012674900,7.12385372,105700.0,105690.0,0.01790978]
[1750012675120,7.12385372,105700.0,105690.0,0.01790985]
[1750012675356,6.93145372,105700.0,105690.0,0.01790985]
[1750012675575,7.09179372,105700.0,105690.0,0.00014182]
[1750012675812,7.09179372,105700.0,105690.0,0.01790979]
[1750012676274,7.12024172,105700.0,105690.0,0.0179098]
[1750012676499,7.12024172,105700.0,105690.0,0.00014182]
[1750012676717,7.12024172,105700.0,105690.0,0.0179098]
[1750012676935,7.09179372,105700.0,105690.0,0.0179098]
[1750012677215,7.09179372,105700.0,105690.0,0.01790982]
[1750012677431,7.09179372,105700.0,105690.0,0.01790979]
[1750012677654,7.09179372,105700.0,105690.0,0.01790978]
[1750012678098,7.09179372,105700.0,105690.0,0.00014182]
[1750012678312,7.09179372,105700.0,105690.0,0.01790984]
[1750012679237,7.09179372,105700.0,105690.0,0.00014182]
[1750012681503,7.09175372,105700.0,105690.0,0.00014182]
[1750012685329,6.89935372,105700.0,105690.0,0.00014182]
[1750012685586,7.09175372,105700.0,105690.0,0.00014182]
[1750012689066,1.24413539,105700.0,105690.0,0.00014182]
[1750012689289,1.24413539,105700.0,105690.0,0.03094182]
[1750012689515,1.84935372,105700.0,105690.0,0.03094182]
[1750012689746,1.24413539,105700.0,105690.0,0.03094182]
[1750012690168,1.24413539,105700.0,105690.0,0.04869962]
[1750012690399,1.15735409,105700.0,105690.0,0.27744907]
[1750012690623,1.15735409,105700.0,105690.0,0.27744871]
[1750012690850,1.15735409,105700.0,105690.0,0.25969118]
[1750012691094,1.15735409,105700.0,105690.0,0.27745799]
[1750012691331,1.15735409,105700.0,105690.0,0.25969118]
[1750012691552,1.15735409,105700.0,105690.0,0.20186863]
[1750012692643,1.15735409,105700.0,105690.0,0.18410182]
[1750012692841,1.15735409,105700.0,105690.0,0.20186863]
[1750012693220,1.15735409,105700.0,105690.0,0.18410182]
[1750012693629,1.15735409,105700.0,105690.0,0.20186863]
[1750012694882,1.15735409,105700.0,105690.0,0.20186841]
[1750012695240,1.15735409,105700.0,105690.0,0.2018684]
[1750012695468,1.15735409,105700.0,105690.0,0.18410182]
[1750012695694,1.15735409,105700.0,105690.0,0.20186863]
[1750012696136,1.15735409,105700.0,105690.0,0.18410182]
[1750012696276,1.15735409,105700.0,105690.0,0.20186863]
[1750012696574,1.15735409,105700.0,105690.0,0.20186865]
[1750012696753,1.15735409,105700.0,105690.0,0.20186867]
[1750012697166,1.15735409,105700.0,105690.0,0.20186842]
[1750012697368,1.15735409,105700.0,105690.0,0.18410182]
[1750012697682,1.15735409,105700.0,105690.0,0.20186866]
[1750012697890,1.15735409,105700.0,105690.0,0.18410182]
[1750012698121,1.15735409,105700.0,105690.0,0.20186866]
[1750012698711,1.15735409,105700.0,105690.0,0.18410182]
[1750012698949,1.15735409,105700.0,105690.0,0.20186843]
[1750012699198,1.15735409,105700.0,105690.0,0.18410182]
[1750012699430,1.15735409,105700.0,105690.0,0.20186843]
[1750012699878,1.15735409,105700.0,105690.0,0.18410182]
[1750012700087,1.15735409,105700.0,105690.0,0.20186867]
[1750012700501,1.15735409,105700.0,105690.0,0.20186866]
[1750012700713,1.15735409,105700.0,105690.0,0.18410182]
[1750012700894,1.15735409,105700.0,105690.0,0.20186848]
[1750012701096,1.15735409,105700.0,105690.0,0.18410182]
[1750012701519,1.15735409,105700.0,105690.0,0.20186852]
[1750012702603,1.15735409,105700.0,105690.0,0.18410182]
[1750012703326,1.15735409,105700.0,105690.0,0.2018685]
[1750012703586,1.15735409,105700.0,105690.0,0.18410182]
[1750012703813,1.15735409,105700.0,105690.0,0.20186852]
[1750012704033,1.15735409,105700.0,105690.0,0.18410182]
[1750012704280,1.15735409,105700.0,105690.0,0.20186854]
[1750012705154,1.15735409,105700.0,105690.0,0.18410182]
[1750012705369,1.15735409,105700.0,105690.0,0.20186818]
[1750012705627,1.15735409,105700.0,105690.0,0.18410182]
[1750012706031,1.15735409,105700.0,105690.0,0.20186851]
[1750012706281,1.15635409,105700.0,105690.0,0.20186834]
[1750012706501,1.15635409,105700.0,105690.0,0.18410182]
[1750012706732,1.15735409,105700.0,105690.0,0.20186851]
[1750012706953,1.15435409,105700.0,105690.0,0.20186851]
[1750012707142,1.15435409,105700.0,105690.0,0.20186832]
[1750012707351,1.15335409,105700.0,105690.0,0.18510182]
[1750012707701,1.15335409,105700.0,105690.0,0.18610182]
[1750012712778,1.75857242,105700.0,105690.0,0.20386778]
[1750012712995,1.75857242,105700.0,105690.0,0.17306783]
[1750012713230,1.75857242,105700.0,105690.0,0.15530182]
[1750012713433,1.75857242,105700.0,105690.0,0.17306792]
[1750012713641,1.75857242,105700.0,105690.0,0.17306788]
[1750012714027,1.75857242,105700.0,105690.0,0.18846788]
[1750012714229,1.75857242,105700.0,105690.0,0.18946791]
[1750012714432,1.75857242,105700.0,105690.0,0.18810182]
[1750012714646,1.75857242,105700.0,105690.0,0.05170788]
[1750012714972,1.75857242,105700.0,105690.0,0.05070778]
[1750012714973,1.15335409,105700.0,105690.0,0.05070778]
[1750012715140,1.15335409,105700.0,105690.0,0.03430778]
[1750012715346,1.15335409,105700.0,105690.0,0.03430788]
[1750012715573,1.15435409,105700.0,105690.0,0.03830786]
[1750012715753,1.15435409,105700.0,105690.0,0.02054182]
[1750012715970,1.15435409,105700.0,105690.0,0.03830782]
[1750012716127,1.15435409,105700.0,105690.0,0.03830781]
[1750012716333,1.15435409,105700.0,105690.0,0.02054182]
[1750012716907,1.15435409,105700.0,105690.0,0.02154182]
[1750012717098,1.15435409,105700.0,105690.0,0.03930788]
[1750012717523,1.15435409,105700.0,105690.0,0.03930784]
[1750012717701,1.15435409,105700.0,105690.0,0.02154182]
[1750012720016,1.15435409,105700.0,105690.0,0.07734231]
[1750012720211,1.15435409,105700.0,105690.0,0.05957629]
[1750012720414,1.15435409,105700.0,105690.0,0.07734215]
[1750012720800,1.15435409,105700.0,105690.0,0.07734216]
[1750012721036,1.15435409,105700.0,105690.0,0.0773422]
[1750012721256,1.15435409,105700.0,105690.0,0.10571965]
[1750012721713,1.15435409,105700.0,105690.0,0.08795384]
[1750012721890,1.15435409,105700.0,105690.0,0.10571953]
[1750012722314,1.15435409,105700.0,105690.0,0.10571958]
[1750012722718,1.15435409,105700.0,105690.0,0.10571949]
[1750012723158,1.15435409,105700.0,105690.0,0.10571946]
[1750012723325,1.15435409,105700.0,105690.0,0.10571959]
[1750012724078,1.15435409,105700.0,105690.0,0.10571973]
[1750012724262,1.15435409,105700.0,105690.0,0.10571965]
[1750012724624,1.15435409,105700.0,105690.0,0.10571975]
[1750012724838,1.15435409,105700.0,105690.0,0.10571956]
[1750012725050,1.15435409,105700.0,105690.0,0.08795384]
[1750012725262,1.15435409,105700.0,105690.0,0.10571978]
[1750012725929,1.15435409,105700.0,105690.0,0.08795384]
[1750012726159,1.15435409,105700.0,105690.0,0.10571966]
[1750012726403,1.15435409,105700.0,105690.0,0.10571978]
[1750012726621,1.15435409,105700.0,105690.0,0.08795384]
[1750012726832,1.15435409,105700.0,105690.0,0.10571966]
[1750012727041,1.15435409,105700.0,105690.0,0.10571978]
[1750012727278,1.15435409,105700.0,105690.0,0.08795384]
[1750012727504,1.15435409,105700.0,105690.0,0.10571978]
[1750012727958,1.15435409,105700.0,105690.0,0.10571966]
[1750012728686,1.15435409,105700.0,105690.0,0.10571978]
[1750012729405,1.15435409,105700.0,105690.0,0.10571999]
[1750012729656,1.15435409,105700.0,105690.0,0.10571995]
[1750012729907,1.15435409,105700.0,105690.0,0.08795384]
[1750012730595,1.15435409,105700.0,105690.0,0.10571994]
[1750012730810,1.15435409,105700.0,105690.0,0.08795384]
[1750012731062,1.15435409,105700.0,105690.0,0.10571965]
[1750012731247,1.15435409,105700.0,105690.0,0.08795384]
[1750012731458,1.15435409,105700.0,105690.0,0.10571995]
[1750012731655,1.15435409,105700.0,105690.0,0.10571989]
[1750012731867,1.15435409,105700.0,105690.0,0.08795384]
[1750012732298,1.15435409,105700.0,105690.0,0.10571981]
[1750012732514,1.15435409,105700.0,105690.0,0.08795384]
[1750012732742,1.15435409,105700.0,105690.0,0.10571978]
[1750012732974,1.15435409,105700.0,105690.0,0.10571966]
[1750012733195,1.15435409,105700.0,105690.0,0.08795384]
[1750012733400,1.15435409,105700.0,105690.0,0.10571995]
[1750012733779,1.15435409,105700.0,105690.0,0.08795384]
[1750012733970,1.15435409,105700.0,105690.0,0.10571966]
[1750012734252,1.15435409,105700.0,105690.0,0.08795384]
[1750012734777,1.15435409,105700.0,105690.0,0.10571558]
[1750012734978,1.15435409,105700.0,105690.0,0.08795384]
[1750012735187,1.15435409,105700.0,105690.0,0.1057154]
[1750012735840,0.54913576,105700.0,105690.0,0.08795384]
[1750012736058,1.15435409,105700.0,105690.0,0.08795384]
[1750012736265,1.15435409,105700.0,105690.0,0.10571527]
[1750012736473,1.15435409,105700.0,105690.0,0.05957629]
[1750012736680,1.15435409,105700.0,105690.0,0.07733778]
[1750012736897,1.15435409,105700.0,105690.0,0.0773379]
[1750012737144,1.15435409,105700.0,105690.0,0.05460343]
[1750012737393,1.15435409,105700.0,105690.0,0.0595733]
[1750012737642,1.15435409,105700.0,105690.0,0.19879491]
[1750012737871,1.75957242,105700.0,105690.0,0.1810333]
[1750012738090,1.15435409,105700.0,105690.0,0.19879496]
[1750012738300,1.15435409,105700.0,105690.0,0.19879498]
[1750012738507,1.15435409,105700.0,105690.0,0.1810333]
[1750012738736,1.15435409,105700.0,105690.0,0.19879503]
[1750012738947,1.15435409,105700.0,105690.0,0.19879495]
[1750012739166,1.15435409,105700.0,105690.0,0.1810333]
[1750012739376,1.15435409,105700.0,105690.0,0.17606355]
[1750012739583,1.15435409,105700.0,105690.0,0.1760635]
[1750012739793,1.15435409,105700.0,105690.0,0.15830182]
[1750012740224,1.15435409,105700.0,105690.0,0.17606352]
[1750012740442,1.15435409,105700.0,105690.0,0.18103341]
[1750012741296,1.15435409,105700.0,105690.0,0.19879509]
[1750012741507,1.15435409,105700.0,105690.0,0.19879516]
[1750012741935,1.15435409,105700.0,105690.0,0.19879515]
[1750012742251,1.15435409,105700.0,105690.0,0.19879507]
[1750012742515,1.15435409,105700.0,105690.0,0.18103341]
[1750012743164,1.15435409,105700.0,105690.0,0.19879515]
[1750012743618,1.15435409,105700.0,105690.0,0.19879507]
[1750012744101,1.15435409,105700.0,105690.0,0.21479507]
[1750012744297,1.15435409,105700.0,105690.0,0.21479503]
[1750012744500,0.96513934,105700.0,105690.0,0.21479897]
[1750012744931,1.15435409,105700.0,105690.0,0.19879905]
[1750012745349,1.15435409,105700.0,105690.0,0.19879908]
[1750012745563,1.15435409,105700.0,105690.0,0.198799]
[1750012745777,1.15435409,105700.0,105690.0,0.18103341]
[1750012746035,1.15435409,105700.0,105690.0,0.045639]
[1750012746253,1.15435409,105700.0,105690.0,0.198759]
[1750012747092,1.15435409,105700.0,105690.0,0.19875905]
[1750012747564,1.15435409,105700.0,105690.0,0.15826182]
[1750012748205,1.15435409,105700.0,105690.0,0.1760277]
[1750012748636,1.15435409,105700.0,105690.0,0.17602771]
[1750012749066,1.15435409,105700.0,105690.0,0.17602768]
[1750012749487,1.15435409,105700.0,105690.0,0.15826182]
[1750012749911,1.15435409,105700.0,105690.0,0.1760277]
[1750012750132,1.15435409,105700.0,105690.0,0.17602768]
[1750012750303,1.15435409,105700.0,105690.0,0.19112768]
[1750012750522,1.15435409,105700.0,105690.0,0.20732768]
[1750012750723,1.15435409,105700.0,105690.0,0.20732764]
[1750012751152,1.15435409,105700.0,105690.0,0.18956182]
[1750012751358,1.15435409,105700.0,105690.0,0.20732762]
[1750012751548,1.15435409,105700.0,105690.0,0.23006193]
[1750012751783,1.15435409,105700.0,105690.0,0.23006194]
[1750012751995,1.15435409,105700.0,105690.0,0.23006192]
[1750012752199,1.15435409,105700.0,105690.0,0.23006183]
[1750012752614,1.15435409,105700.0,105690.0,0.23006192]
[1750012753029,1.15435409,105700.0,105690.0,0.23006191]
[1750012753235,1.15435409,105700.0,105690.0,0.21229613]
[1750012753459,1.15435409,105700.0,105690.0,0.23006189]
[1750012753913,1.15435409,105700.0,105690.0,0.19876189]
[1750012754123,1.15435409,105700.0,105690.0,0.18099613]
[1750012754308,1.15435409,105700.0,105690.0,0.19876189]
[1750012754508,1.15435409,105700.0,105690.0,0.20941417]
[1750012754720,1.15435409,105700.0,105690.0,0.22717988]
[1750012754920,1.15435409,105700.0,105690.0,0.22717995]
[1750012755764,1.15435409,105700.0,105690.0,0.22717993]
[1750012756732,1.15435409,105700.0,105690.0,0.22717994]
[1750012756957,1.15435409,105700.0,105690.0,0.24227981]
[1750012757184,1.15435409,105700.0,105690.0,0.24227977]
[1750012757467,1.15435409,105700.0,105690.0,0.24227976]
[1750012757699,1.15435409,105700.0,105690.0,0.24227988]
[1750012758429,1.15435409,105700.0,105690.0,0.24228004]
[1750012758669,1.15435409,105700.0,105690.0,0.24227979]
[1750012758905,1.15435409,105700.0,105690.0,0.22717988]
[1750012759848,1.15435409,105700.0,105690.0,0.2094162]
[1750012760076,1.15435409,105700.0,105690.0,0.22718191]
[1750012760316,1.15435409,105700.0,105690.0,0.2094162]
[1750012760543,1.15435409,105700.0,105690.0,0.22717856]
[1750012761233,1.15435409,105700.0,105690.0,0.2094162]
[1750012761458,1.15435409,105700.0,105690.0,0.15826182]
[1750012761682,1.15435409,105700.0,105690.0,0.17602418]
[1750012762382,1.15435409,105700.0,105690.0,0.20772418]
[1750012762647,1.15435409,105700.0,105690.0,0.23614328]
[1750012762873,1.15435409,105700.0,105690.0,0.23614302]
[1750012763077,1.15435409,105700.0,105690.0,0.2361428]
[1750012763503,1.15435409,105700.0,105690.0,0.21838092]
[1750012763717,1.15435409,105700.0,105690.0,0.23614277]
[1750012763940,1.15435409,105700.0,105690.0,0.21838092]
[1750012764389,1.15435409,105700.0,105690.0,0.23614276]
[1750012764808,0.54913576,105700.0,105690.0,0.31453014]
[1750012765060,1.15435409,105700.0,105690.0,0.23614611]
[1750012765265,1.15435409,105700.0,105690.0,0.23614612]
[1750012765473,1.15435409,105700.0,105690.0,0.23614608]
[1750012765724,1.15435409,105700.0,105690.0,0.21838092]
[1750012766142,1.15435409,105700.0,105690.0,0.23614607]
[1750012766385,1.15435409,105700.0,105690.0,0.21838092]
[1750012766867,1.15435409,105700.0,105690.0,0.23614608]
[1750012767300,1.15435409,105700.0,105690.0,0.23614609]
[1750012767516,1.15435409,105700.0,105690.0,0.21838092]
[1750012767778,1.15435409,105700.0,105690.0,0.2361461]
[1750012767971,1.15435409,105700.0,105690.0,0.21838092]
[1750012768183,0.54913576,105700.0,105690.0,0.21838092]
[1750012768388,1.15435409,105700.0,105690.0,0.23614609]
[1750012768599,1.15435409,105700.0,105690.0,0.23614608]
[1750012768861,1.15435409,105700.0,105690.0,0.21838092]
[1750012769081,1.15435409,105700.0,105690.0,0.23614608]
[1750012769304,1.15435409,105700.0,105690.0,0.21838092]
[1750012773142,1.15435409,105700.0,105690.0,0.18668092]
[1750012773620,1.15435409,105700.0,105690.0,0.20228092]
[1750012774601,1.15435409,105700.0,105690.0,0.22004612]
[1750012774799,1.15435409,105700.0,105690.0,0.20228092]
[1750012775006,1.15435409,105700.0,105690.0,0.22004612]
[1750012775345,1.15435409,105700.0,105690.0,0.20228092]
[1750012775909,1.15435409,105700.0,105690.0,0.22004612]
[1750012776542,1.15435409,105700.0,105690.0,0.22004165]
[1750012776912,1.15435409,105700.0,105690.0,0.19162732]
[1750012777277,1.15435409,105700.0,105690.0,0.19162742]
[1750012777562,1.15435409,105700.0,105690.0,0.17386182]
[1750012777803,1.15435409,105700.0,105690.0,0.19162742]
[1750012778546,1.15435409,105700.0,105690.0,0.17386182]
[1750012778745,1.15435409,105700.0,105690.0,0.19162742]
[1750012779384,1.15435409,105700.0,105690.0,0.17386182]
[1750012779801,1.15435409,105700.0,105690.0,0.19162742]
[1750012780368,1.15435409,105700.0,105690.0,0.17386182]
[1750012781116,1.15435409,105700.0,105690.0,0.19162742]
[1750012781312,1.15435409,105700.0,105690.0,0.17386182]
[1750012781518,1.15435409,105700.0,105690.0,0.19162742]
[1750012781876,1.15435409,105700.0,105690.0,0.17386182]
[1750012782347,1.15435409,105700.0,105690.0,0.22004184]
[1750012782676,1.15435409,105700.0,105690.0,0.23584179]
[1750012782909,1.15435409,105700.0,105690.0,0.23584158]
[1750012783082,1.15435409,105700.0,105690.0,0.21807645]
[1750012783288,1.15435409,105700.0,105690.0,0.23584153]
[1750012783514,1.15435409,105700.0,105690.0,0.25857457]
[1750012783933,1.15435409,105700.0,105690.0,0.258565]
[1750012784159,1.15435409,105700.0,105690.0,0.25856535]
[1750012784394,1.15435409,105700.0,105690.0,0.2408095]
[1750012784548,1.15435409,105700.0,105690.0,0.25856529]
[1750012784998,1.15435409,105700.0,105690.0,0.25856537]
[1750012785423,1.15435409,105700.0,105690.0,0.2408095]
[1750012785624,1.15435409,105700.0,105690.0,0.2585654]
[1750012785829,1.15435409,105700.0,105690.0,0.18966182]
[1750012786042,1.15435409,105700.0,105690.0,0.2585685]
[1750012786261,1.15435409,105700.0,105690.0,0.2408126]
[1750012786708,1.15435409,105700.0,105690.0,0.25856847]
[1750012786924,1.15435409,105700.0,105690.0,0.2408126]
[1750012787556,1.15435409,105700.0,105690.0,0.21807892]
[1750012787767,1.15435409,105700.0,105690.0,0.23583479]
[1750012788240,1.15435409,105700.0,105690.0,0.21807892]
[1750012788670,1.15435409,105700.0,105690.0,0.23583479]
[1750012788884,1.15435409,105700.0,105690.0,0.23583478]
[1750012789093,1.15435409,105700.0,105690.0,0.23583477]
[1750012789307,1.15435409,105700.0,105690.0,0.23583476]
[1750012789536,1.15435409,105700.0,105690.0,0.21807892]
[1750012789767,1.15435409,105700.0,105690.0,0.23583476]
[1750012790432,1.15435409,105700.0,105690.0,0.21807892]
[1750012790884,1.15435409,105700.0,105690.0,0.23584433]
[1750012791115,1.15435409,105700.0,105690.0,0.21807892]
[1750012791337,1.15435409,105700.0,105690.0,0.23584433]
[1750012791540,1.15435409,105700.0,105690.0,0.21807892]
[1750012791805,1.15435409,105700.0,105690.0,0.25857952]
[1750012792472,1.15435409,105700.0,105690.0,0.24081411]
[1750012792827,1.15435409,105700.0,105690.0,0.25857952]
[1750012793446,1.15435409,105700.0,105690.0,0.24081411]
[1750012793611,1.15435409,105700.0,105690.0,0.25857952]
[1750012794790,1.15435409,105700.0,105690.0,0.24277952]
[1750012794912,1.15435409,105700.0,105690.0,0.22501411]
[1750012795123,1.15435409,105700.0,105690.0,0.24277951]
[1750012795331,1.15435409,105700.0,105690.0,0.22501411]